fUSD/lending_fUSD_20260529
["ID","MTS","AMOUNT","RATE_DAILY","PERIOD"]
[423263560,1780000091000,-500.0,0.00039533,120]
[423263559,1780000091000,-500.0,0.00039533,120]
[423263562,1780000091000,-500.0,0.00039533,120]
[423263561,1780000091000,-500.0,0.00039533,120]
[423263563,1780000091000,-500.0,0.00039533,120]
[423263553,1780000091000,-500.0,0.00039533,120]
[423263570,1780000092000,-500.0,0.00039533,120]
[423263571,1780000092000,-500.0,0.00039533,120]
[423263569,1780000092000,-504.5001239,0.00039533,120]
[423263566,1780000092000,-500.0,0.00039533,120]
[423263572,1780000092000,-500.0,0.00039533,120]
[423263567,1780000092000,-500.0,0.00039533,120]
[423263564,1780000092000,-500.0,0.00039533,120]
[423263565,1780000092000,-500.0,0.00039533,120]
[423263568,1780000092000,-500.0,0.00039533,120]
[423263573,1780000092000,-500.0,0.00039533,120]
[423263574,1780000092000,-372.27411984,0.00039533,120]
[423263585,1780000092000,-500.0,0.00039533,120]
[423263575,1780000092000,-500.0,0.00039533,120]
[423263586,1780000092000,-459.6691532,0.00039533,120]
[423263584,1780000092000,-595.92236401,0.00039533,120]
[423263582,1780000092000,-563.75602925,0.00039533,30]
[423263581,1780000092000,-100000.0,0.00039533,30]
[423263583,1780000092000,-500.0,0.00039533,120]
[423263578,1780000092000,-500.0,0.00039533,120]
[423263579,1780000092000,-170.85483377,0.00039533,120]
[423263577,1780000092000,-500.0,0.00039533,120]
[423263576,1780000092000,-500.0,0.00039533,120]
[423263580,1780000092000,-500.0,0.00039533,120]
[423263593,1780000093000,-500.0,0.00039533,120]
[423263594,1780000093000,-500.0,0.00039533,120]
[423263595,1780000093000,-165.44681357,0.00039533,120]
[423263592,1780000093000,-537.36571958,0.00039533,120]
[423263590,1780000093000,-500.0,0.00039533,120]
[423263599,1780000093000,-376.28515006,0.00039533,120]
[423263589,1780000093000,-500.0,0.00039533,120]
[423263587,1780000093000,-500.0,0.00039533,120]
[423263588,1780000093000,-500.0,0.00039533,120]
[423263597,1780000093000,-500.0,0.00039533,120]
[423263591,1780000093000,-179.82158391,0.00039533,120]
[423263596,1780000093000,-500.0,0.00039533,120]
[423263601,1780000093000,-584.53870745,0.00039533,120]
[423263600,1780000093000,-584.53870745,0.00039533,120]
[423263602,1780000093000,-418.91497329,0.00039533,120]
[423263603,1780000093000,-584.53870745,0.00039533,120]
[423263604,1780000093000,-551.2497366,0.00039533,120]
[423263605,1780000093000,-584.53870745,0.00039533,120]
[423263606,1780000093000,-584.53870745,0.00039533,120]
[423263607,1780000093000,-584.53870745,0.00039533,120]
[423263608,1780000093000,-500.0,0.00039533,90]
[423263611,1780000093000,-500.0,0.00039533,90]
[423263610,1780000093000,-500.0,0.00039533,90]
[423263609,1780000093000,-500.0,0.00039533,90]
[423263598,1780000093000,-282.8075203,0.00039533,120]
[423263620,1780000094000,-549.28151212,0.00039533,120]
[423263618,1780000094000,-271.69809097,0.00039533,120]
[423263617,1780000094000,-343.69143163,0.00039533,90]
[423263616,1780000094000,-500.0,0.00039533,90]
[423263619,1780000094000,-500.0,0.00039533,120]
[423263615,1780000094000,-500.0,0.00039533,90]
[423263612,1780000094000,-500.0,0.00039533,90]
[423263613,1780000094000,-500.0,0.00039533,90]
[423263622,1780000094000,-261.98475464,0.00039533,120]
[423263614,1780000094000,-500.0,0.00039533,90]
[423263621,1780000094000,-500.0,0.00039533,120]
[423263623,1780000094000,-200.92515983,0.00039533,120]
[423263625,1780000094000,-500.0,0.00039533,120]
[423263634,1780000094000,-500.0,0.00039533,120]
[423263631,1780000094000,-407.8771077,0.00039533,120]
[423263633,1780000094000,-500.0,0.00039533,120]
[423263630,1780000094000,-500.0,0.00039533,120]
[423263629,1780000094000,-206.29997758,0.00039533,120]
[423263632,1780000094000,-308.41500431,0.00039533,120]
[423263626,1780000094000,-297.06260182,0.00039533,120]
[423263627,1780000094000,-509.9057896,0.00039533,120]
[423263635,1780000094000,-500.0,0.00039533,120]
[423263624,1780000094000,-500.0,0.00039533,120]
[423263628,1780000094000,-500.0,0.00039533,120]
[423263638,1780000095000,-500.0,0.00039533,120]
[423263636,1780000095000,-500.0,0.00039533,120]
[423263637,1780000095000,-283.85069079,0.00039533,120]
[423263639,1780000095000,-500.0,0.00039533,120]
[423263640,1780000095000,-500.0,0.00039533,120]
[423263641,1780000095000,-500.0,0.00039533,120]
[423263643,1780000095000,-500.0,0.00039533,120]
[423263642,1780000095000,-500.0,0.00039533,120]
[423263644,1780000095000,-500.0,0.00039533,120]
[423263645,1780000095000,-503.83823585,0.00039533,120]
[423263646,1780000095000,-500.0,0.00039533,120]
[423263647,1780000096000,-333.25763957,0.00039533,120]
[423263648,1780000096000,-275.16857127,0.00039533,120]
[423263649,1780000096000,-285.54516957,0.00039533,120]
[423263651,1780000096000,-255.46925488,0.00039533,120]
[423263650,1780000096000,-290.00681409,0.00039533,120]
[423263653,1780000096000,-500.0,0.00039533,120]
[423263652,1780000096000,-500.0,0.00039533,120]
[423263655,1780000096000,-374.80208792,0.00039533,120]
[423263654,1780000096000,-500.0,0.00039533,120]
[423263657,1780000096000,-500.0,0.00039533,120]
[423263665,1780000096000,-500.0,0.00039533,120]
[423263659,1780000096000,-500.0,0.00039533,120]
[423263658,1780000096000,-2552.86,0.00039533,120]
[423263660,1780000096000,-2552.86,0.00039533,120]
[423263662,1780000096000,-2552.86,0.00039533,120]
[423263661,1780000096000,-500.0,0.00039533,120]
[423263664,1780000096000,-335.04179326,0.00039533,120]
[423263663,1780000096000,-384.01424861,0.00039533,120]
[423263666,1780000096000,-2552.86,0.00039533,120]
[423263667,1780000096000,-500.0,0.00039533,120]
[423263668,1780000096000,-2552.86,0.00039533,120]
[423263656,1780000096000,-500.0,0.00039533,120]
[423263675,1780000097000,-2552.86,0.00039533,120]
[423263676,1780000097000,-500.0,0.00039533,120]
[423263677,1780000097000,-2552.86,0.00039533,120]
[423263674,1780000097000,-500.0,0.00039533,120]
[423263669,1780000097000,-500.0,0.00039533,120]
[423263670,1780000097000,-2552.86,0.00039533,120]
[423263671,1780000097000,-251.27913343,0.00039533,120]
[423263678,1780000097000,-500.0,0.00039533,120]
[423263672,1780000097000,-500.0,0.00039533,120]
[423263679,1780000097000,-2552.86,0.00039533,120]
[423263673,1780000097000,-2552.86,0.00039533,120]
[423263682,1780000097000,-500.0,0.00039533,120]
[423263680,1780000097000,-500.0,0.00039533,120]
[423263687,1780000097000,-500.0,0.00039533,120]
[423263689,1780000097000,-500.0,0.00039533,120]
[423263690,1780000097000,-2552.86,0.00039533,120]
[423263688,1780000097000,-2552.86,0.00039533,120]
[423263691,1780000097000,-500.0,0.00039533,120]
[423263686,1780000097000,-173.28414634,0.00039533,120]
[423263683,1780000097000,-2552.86,0.00039533,120]
[423263684,1780000097000,-500.0,0.00039533,120]
[423263681,1780000097000,-2552.86,0.00039533,120]
[423263685,1780000097000,-2552.86,0.00039533,120]
[423263702,1780000098000,-428.21320617,0.00039533,120]
[423263692,1780000098000,-500.0,0.00039533,120]
[423263695,1780000098000,-500.0,0.00039533,120]
[423263694,1780000098000,-500.0,0.00039533,120]
[423263696,1780000098000,-2552.86,0.00039533,120]
[423263698,1780000098000,-500.0,0.00039533,120]
[423263697,1780000098000,-500.0,0.00039533,120]
[423263700,1780000098000,-2552.86,0.00039533,120]
[423263699,1780000098000,-500.0,0.00039533,120]
[423263701,1780000098000,-550.43608066,0.00039533,120]
[423263693,1780000098000,-2552.86,0.00039533,120]
[423263704,1780000098000,-500.0,0.00039533,120]
[423263712,1780000098000,-390.38906707,0.00039533,120]
[423263713,1780000098000,-500.0,0.00039533,120]
[423263711,1780000098000,-2552.96751436,0.00039533,120]
[423263710,1780000098000,-2552.86,0.00039533,120]
[423263703,1780000098000,-2552.86,0.00039533,120]
[423263709,1780000098000,-2552.86,0.00039533,120]
[423263707,1780000098000,-2552.86,0.00039533,120]
[423263705,1780000098000,-2552.86,0.00039533,120]
[423263706,1780000098000,-500.0,0.00039533,120]
[423263708,1780000098000,-376.5776137,0.00039533,120]
[423263723,1780000099000,-162.2816816,0.00039533,120]
[423263716,1780000099000,-500.0,0.00039533,120]
[423263715,1780000099000,-500.0,0.00039533,120]
[423263718,1780000099000,-500.0,0.00039533,120]
[423263717,1780000099000,-279.93639371,0.00039533,120]
[423263720,1780000099000,-257.08015498,0.00039533,120]
[423263719,1780000099000,-500.0,0.00039533,120]
[423263721,1780000099000,-256.45403367,0.00039533,120]
[423263722,1780000099000,-274.2191194,0.00039533,120]
[423263714,1780000099000,-500.0,0.00039533,120]
[423263725,1780000099000,-500.0,0.00039533,120]
[423263726,1780000099000,-527.47769683,0.00039533,120]
[423263727,1780000099000,-305.8822139,0.00039533,60]
[423263729,1780000099000,-500.0,0.00039533,120]
[423263728,1780000099000,-239.33816235,0.00039533,120]
[423263730,1780000099000,-305.33694603,0.00039533,120]
[423263731,1780000099000,-281.13906671,0.00039533,120]
[423263733,1780000099000,-500.0,0.00039533,120]
[423263732,1780000099000,-233.21811681,0.00039533,120]
[423263734,1780000099000,-500.0,0.00039533,120]
[423263724,1780000099000,-227.30249524,0.00039533,120]
[423263742,1780000100000,-285.80517045,0.00039533,120]
[423263740,1780000100000,-500.0,0.00039533,120]
[423263741,1780000100000,-222.3292207,0.00039533,120]
[423263743,1780000100000,-549.06793105,0.00039533,120]
[423263735,1780000100000,-500.0,0.00039533,120]
[423263738,1780000100000,-500.0,0.00039533,120]
[423263737,1780000100000,-240.98989437,0.00039533,120]
[423263736,1780000100000,-500.0,0.00039533,120]
[423263739,1780000100000,-500.0,0.00039533,120]
[423263744,1780000100000,-626.86560724,0.00039533,120]
[423263751,1780000100000,-515.57124531,0.00039533,120]
[423263746,1780000100000,-537.50087541,0.00039533,120]
[423263747,1780000100000,-500.0,0.00039533,120]
[423263749,1780000100000,-500.0,0.00039533,120]
[423263748,1780000100000,-500.0,0.00039533,120]
[423263750,1780000100000,-500.0,0.00039533,120]
[423263753,1780000100000,-572.76532155,0.00039533,120]
[423263752,1780000100000,-500.0,0.00039533,120]
[423263754,1780000100000,-500.0,0.00039533,120]
[423263755,1780000100000,-500.0,0.00039533,120]
[423263745,1780000100000,-291.16041873,0.00039533,120]
[423263763,1780000101000,-179.61746162,0.00039533,120]
[423263762,1780000101000,-500.0,0.00039533,120]
[423263760,1780000101000,-412.96310695,0.00039533,120]
[423263757,1780000101000,-500.0,0.00039533,120]
[423263758,1780000101000,-500.0,0.00039533,120]
[423263756,1780000101000,-500.0,0.00039533,120]
[423263765,1780000101000,-500.0,0.00039533,120]
[423263761,1780000101000,-500.0,0.00039533,120]
[423263764,1780000101000,-500.0,0.00039533,120]
[423263759,1780000101000,-500.0,0.00039533,120]
[423263766,1780000101000,-500.0,0.00039533,120]
[423263768,1780000101000,-547.79761322,0.00039533,120]
[423263769,1780000101000,-500.0,0.00039533,120]
[423263770,1780000101000,-500.0,0.00039533,120]
[423263771,1780000101000,-330.22388098,0.00039533,120]
[423263772,1780000101000,-500.0,0.00039533,120]
[423263774,1780000101000,-500.0,0.00039533,120]
[423263773,1780000101000,-278.05247227,0.00039533,120]
[423263775,1780000101000,-500.0,0.00039533,120]
[423263767,1780000101000,-439.29571327,0.00039533,120]
[423263783,1780000102000,-223.94154004,0.00039533,120]
[423263782,1780000102000,-630.72929719,0.00039533,120]
[423263781,1780000102000,-174.25288374,0.00039533,120]
[423263776,1780000102000,-500.0,0.00039533,120]
[423263779,1780000102000,-500.0,0.00039533,120]
[423263778,1780000102000,-500.0,0.00039533,120]
[423263777,1780000102000,-452.92990017,0.00039533,120]
[423263784,1780000102000,-169.41940567,0.00039533,30]
[423263780,1780000102000,-643.10964123,0.00039533,120]
[423263785,1780000102000,-500.0,0.00039533,120]
[423263789,1780000102000,-500.0,0.00039533,120]
[423263787,1780000102000,-350.50190948,0.00039533,120]
[423263788,1780000102000,-500.0,0.00039533,120]
[423263790,1780000102000,-500.0,0.00039533,120]
[423263791,1780000102000,-675.68159333,0.00039533,120]
[423263792,1780000102000,-500.0,0.00039533,120]
[423263793,1780000102000,-675.68159333,0.00039533,120]
[423263794,1780000102000,-500.0,0.00039533,120]
[423263795,1780000102000,-500.0,0.00039533,120]
[423263796,1780000102000,-675.68159333,0.00039533,120]
[423263786,1780000102000,-500.0,0.00039533,120]
[423263803,1780000103000,-675.68159333,0.00039533,120]
[423263802,1780000103000,-675.68159333,0.00039533,120]
[423263801,1780000103000,-389.0138299,0.00039533,120]
[423263804,1780000103000,-675.68159333,0.00039533,120]
[423263799,1780000103000,-675.68159333,0.00039533,120]
[423263798,1780000103000,-453.77840193,0.00039533,120]
[423263797,1780000103000,-500.0,0.00039533,120]
[423263800,1780000103000,-675.68159333,0.00039533,120]
[423263806,1780000103000,-675.68159333,0.00039533,120]
[423263810,1780000103000,-675.68159332,0.00039533,120]
[423263808,1780000103000,-675.68159333,0.00039533,120]
[423263814,1780000103000,-243.23080608,0.00039533,120]
[423263815,1780000103000,-500.0,0.00039533,120]
[423263811,1780000103000,-500.0,0.00039533,120]
[423263812,1780000103000,-500.0,0.00039533,120]
[423263805,1780000103000,-675.68159333,0.00039533,120]
[423263809,1780000103000,-675.68159332,0.00039533,120]
[423263816,1780000103000,-179.28422667,0.00039533,120]
[423263807,1780000103000,-675.68159333,0.00039533,120]
[423263813,1780000103000,-500.0,0.00039533,120]
[423263826,1780000104000,-500.0,0.00039533,120]
[423263817,1780000104000,-267.94888229,0.00039533,120]
[423263819,1780000104000,-500.0,0.00039533,120]
[423263818,1780000104000,-500.0,0.00039533,120]
[423263821,1780000104000,-729.18532533,0.00039533,120]
[423263820,1780000104000,-615.34442313,0.00039533,120]
[423263823,1780000104000,-584.53870745,0.00039533,120]
[423263822,1780000104000,-268.10887487,0.00039533,120]
[423263824,1780000104000,-584.53870745,0.00039533,120]
[423263825,1780000104000,-584.53870745,0.00039533,120]
[423263828,1780000104000,-500.0,0.00039533,120]
[423263827,1780000104000,-500.0,0.00039533,120]
[423263837,1780000104000,-500.0,0.00039533,120]
[423263836,1780000104000,-212.57997879,0.00039533,120]
[423263835,1780000104000,-500.0,0.00039533,120]
[423263833,1780000104000,-500.0,0.00039533,120]
[423263838,1780000104000,-500.0,0.00039533,120]
[423263831,1780000104000,-500.0,0.00039533,120]
[423263832,1780000104000,-500.0,0.00039533,120]
[423263829,1780000104000,-279.45973817,0.00039533,120]
[423263830,1780000104000,-500.0,0.00039533,120]
[423263834,1780000104000,-2792.74,0.00039533,120]
[423263848,1780000105000,-500.0,0.00039533,120]
[423263839,1780000105000,-500.0,0.00039533,120]
[423263841,1780000105000,-500.0,0.00039533,120]
[423263840,1780000105000,-500.0,0.00039533,120]
[423263843,1780000105000,-500.0,0.00039533,120]
[423263842,1780000105000,-500.0,0.00039533,120]
[423263845,1780000105000,-267.31635003,0.00039533,120]
[423263844,1780000105000,-500.0,0.00039533,120]
[423263846,1780000105000,-413.53915516,0.00039533,120]
[423263847,1780000105000,-500.0,0.00039533,120]
[423263860,1780000105000,-500.0,0.00039533,120]
[423263849,1780000105000,-500.0,0.00039533,120]
[423263852,1780000105000,-215.70786453,0.00039533,120]
[423263851,1780000105000,-100000.0,0.00039533,30]
[423263854,1780000105000,-500.0,0.00039533,120]
[423263853,1780000105000,-500.0,0.00039533,120]
[423263856,1780000105000,-309.20064134,0.00039533,120]
[423263855,1780000105000,-500.0,0.00039533,120]
[423263857,1780000105000,-500.0,0.00039533,120]
[423263858,1780000105000,-520.92987935,0.00039533,120]
[423263859,1780000105000,-253.58459757,0.00039533,120]
[423263850,1780000105000,-152.61104867,0.00039533,120]
[423263867,1780000106000,-500.0,0.00039533,120]
[423263868,1780000106000,-500.0,0.00039533,120]
[423263866,1780000106000,-500.0,0.00039533,120]
[423263865,1780000106000,-500.0,0.00039533,120]
[423263870,1780000106000,-500.0,0.00039533,120]
[423263862,1780000106000,-500.0,0.00039533,120]
[423263863,1780000106000,-500.0,0.00039533,120]
[423263861,1780000106000,-500.0,0.00039533,120]
[423263864,1780000106000,-500.0,0.00039533,120]
[423263869,1780000106000,-500.0,0.00039533,120]
[423263872,1780000106000,-500.0,0.00039533,120]
[423263881,1780000106000,-500.0,0.00039533,120]
[423263873,1780000106000,-521.0,0.00039533,30]
[423263874,1780000106000,-477.38759926,0.00039533,120]
[423263875,1780000106000,-500.0,0.00039533,120]
[423263876,1780000106000,-500.0,0.00039533,120]
[423263878,1780000106000,-500.0,0.00039533,120]
[423263877,1780000106000,-2085.0,0.00039533,120]
[423263879,1780000106000,-500.0,0.00039533,120]
[423263880,1780000106000,-214.945281,0.00039533,120]
[423263871,1780000106000,-498.44684072,0.00039533,120]
[423263890,1780000107000,-500.0,0.00039533,120]
[423263888,1780000107000,-500.0,0.00039533,120]
[423263889,1780000107000,-334.30150427,0.00039533,120]
[423263886,1780000107000,-500.0,0.00039533,120]
[423263885,1780000107000,-500.0,0.00039533,120]
[423263882,1780000107000,-500.0,0.00039533,120]
[423263883,1780000107000,-500.0,0.00039533,120]
[423263891,1780000107000,-500.0,0.00039533,120]
[423263884,1780000107000,-229.419129,0.00039533,120]
[423263893,1780000107000,-587.3950759,0.00039533,120]
[423263887,1780000107000,-298.05189567,0.00039533,120]
[423263894,1780000107000,-500.0,0.00039533,120]
[423263892,1780000107000,-500.0,0.00039533,120]
[423263902,1780000107000,-500.0,0.00039533,120]
[423263901,1780000107000,-500.0,0.00039533,120]
[423263899,1780000107000,-500.0,0.00039533,120]
[423263904,1780000107000,-500.0,0.00039533,120]
[423263903,1780000107000,-500.0,0.00039533,120]
[423263897,1780000107000,-500.0,0.00039533,120]
[423263898,1780000107000,-500.0,0.00039533,120]
[423263895,1780000107000,-500.0,0.00039533,120]
[423263896,1780000107000,-260.03355283,0.00039533,120]
[423263900,1780000107000,-500.0,0.00039533,120]
[423263909,1780000108000,-500.0,0.00039533,120]
[423263905,1780000108000,-500.0,0.00039533,120]
[423263906,1780000108000,-500.0,0.00039533,120]
[423263908,1780000108000,-500.0,0.00039533,120]
[423263907,1780000108000,-500.0,0.00039533,120]
[423263910,1780000108000,-500.0,0.00039533,120]
[423263912,1780000108000,-500.0,0.00039533,120]
[423263913,1780000108000,-500.0,0.00039533,120]
[423263914,1780000108000,-156.67190046,0.00039533,120]
[423263915,1780000108000,-500.0,0.00039533,120]
[423263916,1780000108000,-500.0,0.00039533,120]
[423263917,1780000108000,-282.66693883,0.00039533,120]
[423263919,1780000108000,-345.9082571,0.00039533,120]
[423263918,1780000108000,-254.43685739,0.00039533,120]
[423263911,1780000108000,-500.0,0.00039533,120]
[423263923,1780000109000,500.0,0.0003963,120]
[423263922,1780000109000,500.0,0.0003963,120]
[423263921,1780000109000,500.0,0.0003963,120]
[423263920,1780000109000,6248.48637325,0.0003963,30]
[423263928,1780000110000,500.0,0.0003963,120]
[423263930,1780000110000,500.0,0.0003963,120]
[423263927,1780000110000,500.0,0.0003963,120]
[423263929,1780000110000,500.0,0.0003963,120]
[423263925,1780000110000,178.72368046,0.0003963,120]
[423263924,1780000110000,500.0,0.0003963,120]
[423263926,1780000110000,500.0,0.0003963,120]
[423263931,1780000110000,500.0,0.0003963,120]
[423263941,1780000110000,539.23333967,0.0003963,120]
[423263934,1780000110000,500.0,0.0003963,120]
[423263933,1780000110000,500.0,0.0003963,120]
[423263936,1780000110000,160.96757161,0.0003963,120]
[423263935,1780000110000,500.0,0.0003963,120]
[423263937,1780000110000,500.0,0.0003963,120]
[423263939,1780000110000,500.0,0.0003963,120]
[423263938,1780000110000,500.0,0.0003963,120]
[423263940,1780000110000,500.0,0.0003963,120]
[423263932,1780000110000,500.0,0.0003963,120]
[423263942,1780000111000,500.0,0.0003963,120]
[423263943,1780000111000,500.0,0.0003963,120]
[423263945,1780000111000,579.33241034,0.0003963,120]
[423263944,1780000111000,500.0,0.0003963,120]
[423263951,1780000112000,500.0,0.0003963,120]
[423263946,1780000112000,291.97882802,0.0003963,120]
[423263948,1780000112000,500.0,0.0003963,120]
[423263947,1780000112000,500.0,0.0003963,120]
[423263949,1780000112000,500.0,0.0003963,120]
[423263950,1780000112000,500.0,0.0003963,120]
[423263953,1780000112000,500.0,0.0003963,120]
[423263952,1780000112000,500.0,0.0003963,120]
[423263954,1780000112000,500.0,0.0003963,120]
[423263960,1780000112000,500.0,0.0003963,120]
[423263959,1780000112000,319.39358699,0.0003963,120]
[423263958,1780000112000,500.0,0.0003963,120]
[423263961,1780000112000,369.38929633,0.0003963,120]
[423263955,1780000112000,500.0,0.0003963,120]
[423263956,1780000112000,500.0,0.0003963,120]
[423263957,1780000112000,500.0,0.0003963,120]
[423263963,1780000113000,500.0,0.0003963,120]
[423263962,1780000113000,500.0,0.0003963,120]
[423263972,1780000126000,-1939.46,0.00028048,30]
[423263964,1780000126000,-156.09,0.00015333,80]
[423263966,1780000126000,-159.86,0.00026783,30]
[423263965,1780000126000,-150.72,0.000252,30]
[423263968,1780000126000,-155.29,0.00027879,30]
[423263967,1780000126000,-996.92,0.00027804,30]
[423263969,1780000126000,-865.6,0.0002792,30]
[423263970,1780000126000,-1699.45,0.00027934,30]
[423263971,1780000126000,-155.29,0.00027973,30]
[423263973,1780000126000,-155.29,0.00028067,30]
[423263984,1780000126000,-865.6,0.00031791,30]
[423263975,1780000126000,-653.61,0.00028213,30]
[423263977,1780000126000,-1699.45,0.00028289,30]
[423263976,1780000126000,-474.49,0.0002822,30]
[423263979,1780000126000,-474.49,0.0002848,30]
[423263978,1780000126000,-653.61,0.00028475,30]
[423263980,1780000126000,-500.0,0.00029112,120]
[423263981,1780000126000,-500.0,0.00029112,120]
[423263982,1780000126000,-500.0,0.00029851,120]
[423263983,1780000126000,-159.86,0.00030246,30]
[423263974,1780000126000,-996.92,0.00028202,30]
[423263992,1780000127000,-500.0,0.00034799,120]
[423263991,1780000127000,-500.0,0.00034799,120]
[423263990,1780000127000,-703.47,0.000343,30]
[423263989,1780000127000,-233.28,0.000342,30]
[423263986,1780000127000,-233.28,0.00033,30]
[423263987,1780000127000,-703.47,0.000332,30]
[423263993,1780000127000,-500.0,0.00034799,120]
[423263985,1780000127000,-1939.46,0.00031876,30]
[423263988,1780000127000,-159.86,0.00033718,30]
[423263994,1780000127000,-157.86,0.00035616,60]
[423264004,1780000127000,-160.0,0.00038,39]
[423263996,1780000127000,-500.0,0.00035616,120]
[423264006,1780000127000,-154.0,0.00038,120]
[423264005,1780000127000,-233.28,0.00038,30]
[423264002,1780000127000,-159.86,0.0003719,30]
[423264003,1780000127000,-158.0,0.00038,120]
[423263995,1780000127000,-500.0,0.00035616,120]
[423264000,1780000127000,-703.47,0.000369,30]
[423263999,1780000127000,-233.28,0.000369,30]
[423263998,1780000127000,-703.47,0.000358,30]
[423263997,1780000127000,-233.28,0.000358,30]
[423264001,1780000127000,-160.0,0.00037,35]
[423264016,1780000128000,-322.461786,0.00039533,30]
[423264008,1780000128000,-160.0,0.00039,44]
[423264009,1780000128000,-1718.18,0.000395,30]
[423264010,1780000128000,-321.21740195,0.00039506,120]
[423264011,1780000128000,-244.66,0.00039526,120]
[423264012,1780000128000,-14503.95117325,0.0003953,30]
[423264013,1780000128000,-322.461786,0.00039533,30]
[423264014,1780000128000,-322.461786,0.00039533,30]
[423264015,1780000128000,-322.461786,0.00039533,30]
[423264007,1780000128000,-154.0,0.000389,120]
[423264018,1780000128000,-322.461786,0.00039533,30]
[423264019,1780000128000,-151.0,0.00039533,30]
[423264020,1780000128000,-151.0,0.00039533,30]
[423264021,1780000128000,-151.0,0.00039533,30]
[423264023,1780000128000,-151.0,0.00039533,30]
[423264022,1780000128000,-151.0,0.00039533,30]
[423264025,1780000128000,-194.012164,0.00039533,30]
[423264024,1780000128000,-236.036576,0.00039533,30]
[423264026,1780000128000,-194.012164,0.00039533,30]
[423264027,1780000128000,-194.012164,0.00039533,30]
[423264028,1780000128000,-194.012164,0.00039533,30]
[423264017,1780000128000,-151.0,0.00039533,30]
[423264037,1780000129000,-465.991259,0.00039533,30]
[423264038,1780000129000,-164.69452,0.00039533,30]
[423264035,1780000129000,-465.991259,0.00039533,30]
[423264034,1780000129000,-164.69452,0.00039533,30]
[423264029,1780000129000,-194.012164,0.00039533,30]
[423264033,1780000129000,-151.0,0.00039533,30]
[423264032,1780000129000,-194.012164,0.00039533,30]
[423264031,1780000129000,-194.012164,0.00039533,30]
[423264030,1780000129000,-194.012164,0.00039533,30]
[423264039,1780000129000,-465.991259,0.00039533,30]
[423264036,1780000129000,-164.69452,0.00039533,30]
[423264046,1780000129000,-241.878924,0.00039533,30]
[423264040,1780000129000,-164.69452,0.00039533,30]
[423264041,1780000129000,-465.991259,0.00039533,30]
[423264050,1780000129000,-151.0,0.00039533,30]
[423264049,1780000129000,-151.0,0.00039533,30]
[423264048,1780000129000,-241.878924,0.00039533,30]
[423264051,1780000129000,-151.0,0.00039533,30]
[423264045,1780000129000,-151.0,0.00039533,30]
[423264044,1780000129000,-241.878924,0.00039533,30]
[423264042,1780000129000,-151.0,0.00039533,30]
[423264043,1780000129000,-241.878924,0.00039533,30]
[423264047,1780000129000,-215.349222,0.00039533,30]
[423264059,1780000130000,-727.65710051,0.00039766,120]
[423264052,1780000130000,-258.055893,0.00039533,30]
[423264053,1780000130000,-160.03,0.00039533,30]
[423264055,1780000130000,-801.24038332,0.00039533,30]
[423264054,1780000130000,-154.9977,0.00039533,30]
[423264056,1780000130000,-158.0,0.000396,120]